[Event "Titled Tuesday Blitz April 4 Early 2023"]
[White "Toktomushev, Teimur"]
[Black "Tomaszewski, Kacper"]
[WhiteFideId "14176726"]
[BlackFideId "1127373"]
[WhiteElo "2116"]
[BlackElo "2211"]
[Result "0-1"]
[Round "04"]
[TimeControl "180+2"]
[Date "2023.04.04"]
[WhiteClock "0:00:03"]
[BlackClock "0:00:50"]

1. d4 {[%clk 0:03:00]}  d5 {[%clk 0:02:59]} 2. c4 {[%clk 0:03:00]}  dxc4 {[%clk 0:02:57]} 3. e3 {[%clk 0:03:00]}  e6 {[%clk 0:02:56]} 4. Bxc4 {[%clk 0:02:59]}  a6 {[%clk 0:02:56]} 5. Nf3 {[%clk 0:02:59]}  Nf6 {[%clk 0:02:57]} 6. O-O {[%clk 0:02:59]}  b5 {[%clk 0:02:57]} 7. Bb3 {[%clk 0:02:59]}  Bb7 {[%clk 0:02:56]} 8. Nc3 {[%clk 0:02:59]}  Be7 {[%clk 0:02:55]} 9. Qe2 {[%clk 0:02:42]}  O-O {[%clk 0:02:55]} 10. Rd1 {[%clk 0:02:29]}  Nbd7 {[%clk 0:02:55]} 11. e4 {[%clk 0:02:26]}  c5 {[%clk 0:02:54]} 12. d5 {[%clk 0:01:18]}  exd5 {[%clk 0:02:51]} 13. e5 {[%clk 0:01:13]}  d4 {[%clk 0:02:43]} 14. exf6 {[%clk 0:01:06]}  Nxf6 {[%clk 0:02:44]} 15. Bg5 {[%clk 0:00:49]}  h6 {[%clk 0:02:37]} 16. Bh4 {[%clk 0:00:37]}  Bd6 {[%clk 0:02:28]} 17. Nd5 {[%clk 0:00:26]}  Bxd5 {[%clk 0:01:58]} 18. Bxd5 {[%clk 0:00:26]}  Bxh2+ {[%clk 0:01:57]} 19. Nxh2 {[%clk 0:00:09]}  Qxd5 {[%clk 0:01:58]} 20. Bxf6 {[%clk 0:00:09]}  gxf6 {[%clk 0:01:58]} 21. Ng4 {[%clk 0:00:05]}  Kg7 {[%clk 0:01:56]} 22. Qd2 {[%clk 0:00:03]}  Qg5 {[%clk 0:01:54]} 23. Qxg5+ {[%clk 0:00:03]}  hxg5 {[%clk 0:01:54]} 24. b4 {[%clk 0:00:03]}  f5 {[%clk 0:01:37]} 25. Ne5 {[%clk 0:00:04]}  Rfe8 {[%clk 0:01:33]} 26. Nd7 {[%clk 0:00:03]}  c4 {[%clk 0:01:25]} 27. Rxd4 {[%clk 0:00:03]}  Rad8 {[%clk 0:01:26]} 28. Rad1 {[%clk 0:00:03]}  Re7 {[%clk 0:01:27]} 29. Nc5 {[%clk 0:00:02]}  Rxd4 {[%clk 0:01:23]} 30. Rxd4 {[%clk 0:00:03]}  Re1+ {[%clk 0:01:23]} 31. Kh2 {[%clk 0:00:03]}  Re2 {[%clk 0:01:24]} 32. Rd7 {[%clk 0:00:03]}  Rxa2 {[%clk 0:01:21]} 33. Ra7 {[%clk 0:00:03]}  c3 {[%clk 0:01:21]} 34. Rc7 {[%clk 0:00:03]}  a5 {[%clk 0:01:18]} 35. bxa5 {[%clk 0:00:02]}  b4 {[%clk 0:01:19]} 36. Nb3 {[%clk 0:00:02]}  Ra3 {[%clk 0:01:19]} 37. Nd4 {[%clk 0:00:02]}  Rxa5 {[%clk 0:01:17]} 38. Ne6+ {[%clk 0:00:01]}  Kf6 {[%clk 0:01:16]} 39. Nd8 {[%clk 0:00:02]}  Rb5 {[%clk 0:01:09]} 40. Rxf7+ {[%clk 0:00:02]}  Kg6 {[%clk 0:01:09]} 41. Rc7 {[%clk 0:00:02]}  b3 {[%clk 0:01:07]} 42. Rc6+ {[%clk 0:00:03]}  Kg7 {[%clk 0:01:06]} 43. Ne6+ {[%clk 0:00:03]}  Kg8 {[%clk 0:01:04]} 44. Rc8+ {[%clk 0:00:03]}  Kf7 {[%clk 0:01:03]} 45. Nxg5+ {[%clk 0:00:04]}  Kg6 {[%clk 0:01:02]} 46. Nh3 {[%clk 0:00:01]}  b2 {[%clk 0:01:02]} 47. Rxc3 {[%clk 0:00:01]}  b1=Q {[%clk 0:01:02]} 48. Rg3+ {[%clk 0:00:02]}  Kf6 {[%clk 0:01:02]} 49. Re3 {[%clk 0:00:02]}  f4 {[%clk 0:00:59]} 50. Nxf4 {[%clk 0:00:02]}  Rf5 {[%clk 0:00:55]} 51. Rf3 {[%clk 0:00:02]}  Qb8 {[%clk 0:00:53]} 52. g3 {[%clk 0:00:02]}  Qh8+ {[%clk 0:00:53]} 53. Kg2 {[%clk 0:00:02]}  Qa8 {[%clk 0:00:52]} 54. Nh5+ {[%clk 0:00:02]}  Kg5 {[%clk 0:00:51]} 55. Nf4 {[%clk 0:00:03]}  Rxf4 {[%clk 0:00:50]} 56. gxf4+ {[%clk 0:00:03]}  Kg4 {[%clk 0:00:50]} 0-1


[Site "https://www.chess.com"]

[Event "Titled Tuesday Blitz April 4 Early 2023"]
[White "Rodchenkov, Sergey D."]
[Black "Krzywda, Andrzej"]
[WhiteFideId "4168712"]
[BlackFideId "1114565"]
[WhiteElo "2277"]
[BlackElo "2155"]
[Result "1-0"]
[Round "04"]
[TimeControl "180+2"]
[Date "2023.04.04"]
[WhiteClock "0:00:09"]
[BlackClock "0:00:03"]

1. e4 {[%clk 0:03:00]}  e5 {[%clk 0:02:59]} 2. Nf3 {[%clk 0:02:58]}  Nf6 {[%clk 0:02:59]} 3. d4 {[%clk 0:02:57]}  Nxe4 {[%clk 0:02:58]} 4. Bd3 {[%clk 0:02:54]}  d5 {[%clk 0:02:58]} 5. Nxe5 {[%clk 0:02:54]}  Bd6 {[%clk 0:02:58]} 6. O-O {[%clk 0:02:51]}  O-O {[%clk 0:02:58]} 7. c4 {[%clk 0:02:49]}  c5 {[%clk 0:02:59]} 8. Nc3 {[%clk 0:02:00]}  Nxc3 {[%clk 0:02:55]} 9. bxc3 {[%clk 0:02:01]}  cxd4 {[%clk 0:02:48]} 10. cxd4 {[%clk 0:01:47]}  dxc4 {[%clk 0:02:24]} 11. Nxc4 {[%clk 0:01:41]}  Bc7 {[%clk 0:02:12]} 12. Ba3 {[%clk 0:01:19]}  Re8 {[%clk 0:02:05]} 13. d5 {[%clk 0:01:12]}  b5 {[%clk 0:01:36]} 14. Ne3 {[%clk 0:00:49]}  b4 {[%clk 0:01:36]} 15. Bb2 {[%clk 0:00:44]}  Nd7 {[%clk 0:00:58]} 16. Ng4 {[%clk 0:00:12]}  Qh4 {[%clk 0:00:39]} 17. g3 {[%clk 0:00:11]}  Qg5 {[%clk 0:00:28]} 18. h4 {[%clk 0:00:10]}  Qe7 {[%clk 0:00:23]} 19. Qc2 {[%clk 0:00:09]}  Ne5 {[%clk 0:00:16]} 20. Bxh7+ {[%clk 0:00:09]}  Kh8 {[%clk 0:00:16]} 21. Rfe1 {[%clk 0:00:10]}  f6 {[%clk 0:00:14]} 22. Nxe5 {[%clk 0:00:09]}  Bxe5 {[%clk 0:00:15]} 23. Bg6 {[%clk 0:00:09]}  Rd8 {[%clk 0:00:13]} 24. Qe2 {[%clk 0:00:08]}  Kg8 {[%clk 0:00:03]} 25. Qh5 {[%clk 0:00:09]} 1-0


[Site "https://www.chess.com"]

[Event "Titled Tuesday Blitz April 4 Early 2023"]
[White "Ramirez Vido, Robert Yorisan"]
[Black "Rangel, Daniel"]
[WhiteFideId "3513823"]
[BlackFideId "2124475"]
[WhiteElo "2397"]
[BlackElo "2256"]
[Result "1-0"]
[Round "04"]
[TimeControl "180+2"]
[Date "2023.04.04"]
[WhiteClock "0:00:18"]
[BlackClock "0:00:03"]

1. f4 {[%clk 0:02:59]}  c5 {[%clk 0:02:54]} 2. Nf3 {[%clk 0:02:58]}  g6 {[%clk 0:02:53]} 3. g3 {[%clk 0:02:58]}  Bg7 {[%clk 0:02:53]} 4. Bg2 {[%clk 0:02:59]}  Nc6 {[%clk 0:02:54]} 5. d3 {[%clk 0:02:58]}  d6 {[%clk 0:02:55]} 6. O-O {[%clk 0:02:58]}  e6 {[%clk 0:02:55]} 7. e4 {[%clk 0:02:58]}  Nge7 {[%clk 0:02:56]} 8. c3 {[%clk 0:02:57]}  O-O {[%clk 0:02:57]} 9. Be3 {[%clk 0:02:57]}  Rb8 {[%clk 0:02:55]} 10. a4 {[%clk 0:02:53]}  a6 {[%clk 0:02:53]} 11. Bf2 {[%clk 0:02:54]}  b5 {[%clk 0:02:54]} 12. axb5 {[%clk 0:02:54]}  axb5 {[%clk 0:02:55]} 13. d4 {[%clk 0:02:54]}  cxd4 {[%clk 0:02:54]} 14. cxd4 {[%clk 0:02:54]}  Bb7 {[%clk 0:02:46]} 15. e5 {[%clk 0:02:49]}  h5 {[%clk 0:02:40]} 16. Nc3 {[%clk 0:02:48]}  b4 {[%clk 0:02:37]} 17. Ne4 {[%clk 0:02:47]}  Nf5 {[%clk 0:02:34]} 18. exd6 {[%clk 0:02:34]}  Nxd6 {[%clk 0:02:34]} 19. Nc5 {[%clk 0:02:35]}  Bc8 {[%clk 0:02:25]} 20. Ne5 {[%clk 0:02:19]}  Ne7 {[%clk 0:02:21]} 21. Ra7 {[%clk 0:02:12]}  Ndf5 {[%clk 0:02:05]} 22. Qd3 {[%clk 0:01:51]}  Rb6 {[%clk 0:01:50]} 23. Nc4 {[%clk 0:01:44]}  Rb5 {[%clk 0:01:42]} 24. Ne5 {[%clk 0:01:36]}  Rb8 {[%clk 0:01:33]} 25. Rd1 {[%clk 0:01:32]}  Bxe5 {[%clk 0:01:17]} 26. dxe5 {[%clk 0:01:31]}  Qxd3 {[%clk 0:01:15]} 27. Rxd3 {[%clk 0:01:32]}  Rb5 {[%clk 0:01:03]} 28. Ne4 {[%clk 0:01:26]}  Kg7 {[%clk 0:00:54]} 29. Bc5 {[%clk 0:01:15]}  Rb7 {[%clk 0:00:37]} 30. Rxb7 {[%clk 0:01:06]}  Bxb7 {[%clk 0:00:38]} 31. Bxb4 {[%clk 0:00:51]}  Rb8 {[%clk 0:00:37]} 32. Bxe7 {[%clk 0:00:38]}  Nxe7 {[%clk 0:00:36]} 33. Rd7 {[%clk 0:00:36]}  Nf5 {[%clk 0:00:32]} 34. Ng5 {[%clk 0:00:26]}  Bxg2 {[%clk 0:00:27]} 35. Rxf7+ {[%clk 0:00:25]}  Kg8 {[%clk 0:00:26]} 36. Kxg2 {[%clk 0:00:25]}  Rxb2+ {[%clk 0:00:26]} 37. Kf3 {[%clk 0:00:25]}  Rxh2 {[%clk 0:00:22]} 38. Rf6 {[%clk 0:00:24]}  Ra2 {[%clk 0:00:16]} 39. Rxg6+ {[%clk 0:00:24]}  Kf8 {[%clk 0:00:14]} 40. Rf6+ {[%clk 0:00:24]}  Kg7 {[%clk 0:00:12]} 41. Nxe6+ {[%clk 0:00:24]}  Kh7 {[%clk 0:00:11]} 42. Rxf5 {[%clk 0:00:24]}  Ra3+ {[%clk 0:00:11]} 43. Kg2 {[%clk 0:00:24]}  Kg6 {[%clk 0:00:12]} 44. Rg5+ {[%clk 0:00:21]}  Kh6 {[%clk 0:00:13]} 45. Ng7 {[%clk 0:00:20]}  h4 {[%clk 0:00:12]} 46. Nf5+ {[%clk 0:00:19]}  Kh7 {[%clk 0:00:11]} 47. Nxh4 {[%clk 0:00:20]}  Ra6 {[%clk 0:00:10]} 48. Nf5 {[%clk 0:00:19]}  Rb6 {[%clk 0:00:10]} 49. Kh3 {[%clk 0:00:19]}  Kh8 {[%clk 0:00:10]} 50. Kg4 {[%clk 0:00:20]}  Kh7 {[%clk 0:00:11]} 51. Nd6 {[%clk 0:00:19]}  Kh6 {[%clk 0:00:10]} 52. Ne4 {[%clk 0:00:19]}  Ra6 {[%clk 0:00:09]} 53. Nf6 {[%clk 0:00:19]}  Ra3 {[%clk 0:00:06]} 54. Kf5 {[%clk 0:00:19]}  Re3 {[%clk 0:00:03]} 55. Rg6# {[%clk 0:00:18]} 1-0


[Site "https://www.chess.com"]

[Event "Titled Tuesday Blitz April 4 Early 2023"]
[White "Ruperez Benito, Antonio"]
[Black "Thecourseoisildur"]
[WhiteFideId "22245049"]
[WhiteElo "2273"]
[BlackElo "2509"]
[Result "1-0"]
[Round "04"]
[TimeControl "180+2"]
[Date "2023.04.04"]
[WhiteClock "0:00:26"]
[BlackClock "0:00:18"]

1. e4 {[%clk 0:02:12]}  c5 {[%clk 0:02:38]} 2. Nf3 {[%clk 0:02:10]}  e6 {[%clk 0:02:38]} 3. d4 {[%clk 0:02:09]}  cxd4 {[%clk 0:02:39]} 4. Nxd4 {[%clk 0:02:10]}  Nf6 {[%clk 0:02:40]} 5. Bd3 {[%clk 0:02:09]}  Nc6 {[%clk 0:02:38]} 6. Nxc6 {[%clk 0:02:10]}  bxc6 {[%clk 0:02:39]} 7. O-O {[%clk 0:02:09]}  d5 {[%clk 0:02:39]} 8. Nd2 {[%clk 0:02:09]}  Be7 {[%clk 0:02:35]} 9. Qe2 {[%clk 0:02:08]}  O-O {[%clk 0:02:34]} 10. c4 {[%clk 0:02:08]}  Ba6 {[%clk 0:02:30]} 11. b3 {[%clk 0:02:06]}  d4 {[%clk 0:02:19]} 12. e5 {[%clk 0:02:03]}  Nd7 {[%clk 0:02:16]} 13. Qe4 {[%clk 0:01:32]}  g6 {[%clk 0:02:14]} 14. Qxc6 {[%clk 0:01:28]}  Nxe5 {[%clk 0:02:11]} 15. Qxa6 {[%clk 0:01:28]}  Nxd3 {[%clk 0:02:11]} 16. Ba3 {[%clk 0:01:27]}  Bxa3 {[%clk 0:01:38]} 17. Qxa3 {[%clk 0:01:28]}  Qb6 {[%clk 0:01:34]} 18. Nf3 {[%clk 0:01:14]}  e5 {[%clk 0:01:25]} 19. Rad1 {[%clk 0:01:09]}  e4 {[%clk 0:01:24]} 20. Ne1 {[%clk 0:01:09]}  Nf4 {[%clk 0:01:16]} 21. Nc2 {[%clk 0:00:50]}  e3 {[%clk 0:00:56]} 22. fxe3 {[%clk 0:00:39]}  Ne2+ {[%clk 0:00:41]} 23. Kh1 {[%clk 0:00:33]}  dxe3 {[%clk 0:00:35]} 24. Rde1 {[%clk 0:00:27]}  Nd4 {[%clk 0:00:22]} 25. Nxe3 {[%clk 0:00:27]}  Rae8 {[%clk 0:00:18]} 26. Qb2 {[%clk 0:00:26]} 1-0


[Site "https://www.chess.com"]

[Event "Titled Tuesday Blitz April 4 Early 2023"]
[White "Shukhman, Anna"]
[Black "Dushyant Sharma"]
[WhiteFideId "54180058"]
[BlackFideId "25065130"]
[WhiteElo "2125"]
[BlackElo "2198"]
[Result "1-0"]
[Round "04"]
[TimeControl "180+2"]
[Date "2023.04.04"]
[WhiteClock "0:00:36"]
[BlackClock "0:00:03"]

1. e4 {[%clk 0:03:00]}  d5 {[%clk 0:02:56]} 2. exd5 {[%clk 0:03:00]}  Nf6 {[%clk 0:02:56]} 3. d4 {[%clk 0:02:59]}  Bg4 {[%clk 0:02:54]} 4. f3 {[%clk 0:02:59]}  Bf5 {[%clk 0:02:53]} 5. g4 {[%clk 0:02:59]}  Bg6 {[%clk 0:02:53]} 6. c4 {[%clk 0:02:59]}  h6 {[%clk 0:02:53]} 7. Nc3 {[%clk 0:02:58]}  e6 {[%clk 0:02:48]} 8. dxe6 {[%clk 0:02:57]}  Nc6 {[%clk 0:02:48]} 9. Be3 {[%clk 0:02:50]}  Bb4 {[%clk 0:02:35]} 10. d5 {[%clk 0:02:35]}  Ne5 {[%clk 0:02:29]} 11. Bd4 {[%clk 0:02:34]}  Nfxg4 {[%clk 0:01:12]} 12. Qa4+ {[%clk 0:02:21]}  c6 {[%clk 0:01:01]} 13. fxg4 {[%clk 0:02:07]}  Bd6 {[%clk 0:00:15]} 14. Be2 {[%clk 0:01:54]}  Qh4+ {[%clk 0:00:11]} 15. Bf2 {[%clk 0:01:53]}  Qg5 {[%clk 0:00:11]} 16. Nf3 {[%clk 0:01:44]}  Nxf3+ {[%clk 0:00:11]} 17. Bxf3 {[%clk 0:01:45]}  O-O {[%clk 0:00:10]} 18. Qd1 {[%clk 0:01:07]}  fxe6 {[%clk 0:00:10]} 19. O-O {[%clk 0:01:07]}  exd5 {[%clk 0:00:04]} 20. Bg3 {[%clk 0:01:01]}  Bxg3 {[%clk 0:00:03]} 21. hxg3 {[%clk 0:01:02]}  Qe3+ {[%clk 0:00:02]} 22. Kg2 {[%clk 0:01:00]}  d4 {[%clk 0:00:03]} 23. Re1 {[%clk 0:00:56]}  Qg5 {[%clk 0:00:02]} 24. Qxd4 {[%clk 0:00:56]}  Rad8 {[%clk 0:00:02]} 25. Qe3 {[%clk 0:00:55]}  Rd2+ {[%clk 0:00:03]} 26. Kg1 {[%clk 0:00:53]}  Rxf3 {[%clk 0:00:02]} 27. Qxf3 {[%clk 0:00:51]}  Rd3 {[%clk 0:00:01]} 28. Qf4 {[%clk 0:00:47]}  Qc5+ {[%clk 0:00:01]} 29. Kg2 {[%clk 0:00:46]}  Kh7 {[%clk 0:00:02]} 30. Rad1 {[%clk 0:00:44]}  Rxd1 {[%clk 0:00:01]} 31. Rxd1 {[%clk 0:00:45]}  Qb4 {[%clk 0:00:02]} 32. Rd2 {[%clk 0:00:41]}  a5 {[%clk 0:00:02]} 33. g5 {[%clk 0:00:41]}  h5 {[%clk 0:00:02]} 34. g4 {[%clk 0:00:40]}  hxg4 {[%clk 0:00:02]} 35. Qh2+ {[%clk 0:00:39]}  Kg8 {[%clk 0:00:03]} 36. Rd8+ {[%clk 0:00:39]}  Kf7 {[%clk 0:00:03]} 37. Qf4+ {[%clk 0:00:38]}  Ke7 {[%clk 0:00:03]} 38. Qf8+ {[%clk 0:00:37]}  Ke6 {[%clk 0:00:03]} 39. Qxb4 {[%clk 0:00:37]}  axb4 {[%clk 0:00:04]} 40. Ne2 {[%clk 0:00:38]}  Bd3 {[%clk 0:00:03]} 41. Rxd3 {[%clk 0:00:36]} 1-0


[Site "https://www.chess.com"]

[Event "Titled Tuesday Blitz April 4 Early 2023"]
[White "Goffredo_Fofi"]
[Black "Ai, Evan"]
[BlackFideId "2094770"]
[WhiteElo "2507"]
[BlackElo "1963"]
[Result "1-0"]
[Round "04"]
[TimeControl "180+2"]
[Date "2023.04.04"]
[WhiteClock "0:00:19"]
[BlackClock "0:00:19"]

1. d4 {[%clk 0:03:00]}  Nf6 {[%clk 0:02:59]} 2. Nf3 {[%clk 0:03:01]}  e6 {[%clk 0:02:57]} 3. c4 {[%clk 0:03:00]}  b6 {[%clk 0:02:53]} 4. g3 {[%clk 0:03:00]}  Bb7 {[%clk 0:02:51]} 5. Bg2 {[%clk 0:03:00]}  Be7 {[%clk 0:02:50]} 6. O-O {[%clk 0:03:01]}  O-O {[%clk 0:02:47]} 7. Re1 {[%clk 0:03:02]}  d5 {[%clk 0:02:41]} 8. cxd5 {[%clk 0:03:01]}  exd5 {[%clk 0:02:38]} 9. Nc3 {[%clk 0:03:02]}  Nbd7 {[%clk 0:02:37]} 10. Bf4 {[%clk 0:03:02]}  Ne4 {[%clk 0:02:37]} 11. Rc1 {[%clk 0:03:02]}  c5 {[%clk 0:02:33]} 12. Nxe4 {[%clk 0:02:58]}  dxe4 {[%clk 0:02:28]} 13. Nd2 {[%clk 0:02:59]}  f5 {[%clk 0:02:21]} 14. Nc4 {[%clk 0:02:25]}  Nf6 {[%clk 0:02:16]} 15. dxc5 {[%clk 0:02:05]}  Bxc5 {[%clk 0:02:17]} 16. Nd6 {[%clk 0:02:04]}  Bd5 {[%clk 0:01:43]} 17. Nxf5 {[%clk 0:02:00]}  Ng4 {[%clk 0:01:26]} 18. Rxc5 {[%clk 0:01:54]}  bxc5 {[%clk 0:01:25]} 19. Qxd5+ {[%clk 0:01:50]}  Kh8 {[%clk 0:01:21]} 20. Qxe4 {[%clk 0:01:31]}  Qf6 {[%clk 0:01:09]} 21. Ne3 {[%clk 0:01:03]}  Nxf2 {[%clk 0:00:47]} 22. Kxf2 {[%clk 0:01:04]}  g5 {[%clk 0:00:47]} 23. Ng4 {[%clk 0:00:36]}  Qg7 {[%clk 0:00:22]} 24. Qxa8 {[%clk 0:00:20]}  Rxa8 {[%clk 0:00:20]} 25. Be5 {[%clk 0:00:19]}  Rf8+ {[%clk 0:00:19]} 26. Kg1 {[%clk 0:00:19]} 1-0


[Site "https://www.chess.com"]

[Event "Titled Tuesday Blitz April 4 Early 2023"]
[White "Girsh, Daniel"]
[Black "Salman, Pavel"]
[WhiteFideId "30949190"]
[BlackFideId "24153753"]
[WhiteElo "2075"]
[BlackElo "2187"]
[Result "0-1"]
[Round "04"]
[TimeControl "180+2"]
[Date "2023.04.04"]
[WhiteClock "0:02:26"]
[BlackClock "0:02:19"]

1. d4 {[%clk 0:03:00]}  g6 {[%clk 0:03:00]} 2. c4 {[%clk 0:02:56]}  Nf6 {[%clk 0:03:00]} 3. Nf3 {[%clk 0:02:55]}  c5 {[%clk 0:03:01]} 4. g3 {[%clk 0:02:56]}  cxd4 {[%clk 0:03:00]} 5. Bg2 {[%clk 0:02:56]}  Bg7 {[%clk 0:02:59]} 6. O-O {[%clk 0:02:57]}  O-O {[%clk 0:03:00]} 7. Nxd4 {[%clk 0:02:57]}  Nc6 {[%clk 0:03:00]} 8. Nc3 {[%clk 0:02:57]}  Nxd4 {[%clk 0:02:59]} 9. Qxd4 {[%clk 0:02:54]}  d6 {[%clk 0:02:59]} 10. Bg5 {[%clk 0:02:52]}  Be6 {[%clk 0:02:59]} 11. b3 {[%clk 0:02:50]}  Nd5 {[%clk 0:02:57]} 12. Qxg7+ {[%clk 0:02:46]}  Kxg7 {[%clk 0:02:56]} 13. cxd5 {[%clk 0:02:47]}  Bd7 {[%clk 0:02:54]} 14. Rac1 {[%clk 0:02:47]}  f6 {[%clk 0:02:53]} 15. Be3 {[%clk 0:02:47]}  b6 {[%clk 0:02:50]} 16. h4 {[%clk 0:02:44]}  h5 {[%clk 0:02:50]} 17. Rfd1 {[%clk 0:02:43]}  Rc8 {[%clk 0:02:49]} 18. Ne4 {[%clk 0:02:43]}  Rxc1 {[%clk 0:02:49]} 19. Rxc1 {[%clk 0:02:44]}  Qa8 {[%clk 0:02:46]} 20. Rc7 {[%clk 0:02:43]}  Rd8 {[%clk 0:02:42]} 21. Bd4 {[%clk 0:02:42]}  Qb8 {[%clk 0:02:40]} 22. Rc3 {[%clk 0:02:38]}  Rc8 {[%clk 0:02:38]} 23. Re3 {[%clk 0:02:39]}  Kf7 {[%clk 0:02:32]} 24. Kh2 {[%clk 0:02:33]}  Bf5 {[%clk 0:02:30]} 25. Nc3 {[%clk 0:02:31]}  a6 {[%clk 0:02:27]} 26. Na4 {[%clk 0:02:29]}  b5 {[%clk 0:02:22]} 27. Nb6 {[%clk 0:02:28]}  Rc1 {[%clk 0:02:22]} 28. a4 {[%clk 0:02:26]}  Rd1 {[%clk 0:02:19]} 0-1


[Site "https://www.chess.com"]

[Event "Titled Tuesday Blitz April 4 Early 2023"]
[White "Mirzanurov, Bulat"]
[Black "Mouhamad, Joachim"]
[WhiteFideId "4184521"]
[BlackFideId "656410"]
[WhiteElo "2019"]
[BlackElo "2125"]
[Result "0-1"]
[Round "04"]
[TimeControl "180+2"]
[Date "2023.04.04"]
[WhiteClock "0:00:04"]
[BlackClock "0:00:09"]

1. e4 {[%clk 0:02:50]}  c5 {[%clk 0:02:59]} 2. Nf3 {[%clk 0:02:50]}  Nc6 {[%clk 0:03:00]} 3. d4 {[%clk 0:02:50]}  cxd4 {[%clk 0:03:00]} 4. Nxd4 {[%clk 0:02:50]}  g6 {[%clk 0:03:01]} 5. c4 {[%clk 0:02:48]}  Nf6 {[%clk 0:02:59]} 6. Nc3 {[%clk 0:02:47]}  d6 {[%clk 0:02:58]} 7. Be2 {[%clk 0:02:44]}  Nxd4 {[%clk 0:02:57]} 8. Qxd4 {[%clk 0:02:44]}  Bg7 {[%clk 0:02:58]} 9. Be3 {[%clk 0:02:42]}  O-O {[%clk 0:02:57]} 10. Qd3 {[%clk 0:02:41]}  a5 {[%clk 0:02:56]} 11. O-O {[%clk 0:02:40]}  a4 {[%clk 0:02:57]} 12. Rad1 {[%clk 0:02:32]}  Qa5 {[%clk 0:02:51]} 13. f4 {[%clk 0:02:31]}  Bd7 {[%clk 0:02:35]} 14. e5 {[%clk 0:02:14]}  Ne8 {[%clk 0:02:29]} 15. Nd5 {[%clk 0:01:46]}  dxe5 {[%clk 0:02:27]} 16. Nxe7+ {[%clk 0:01:45]}  Kh8 {[%clk 0:02:27]} 17. Qxd7 {[%clk 0:01:45]}  exf4 {[%clk 0:02:12]} 18. Bxf4 {[%clk 0:01:20]}  Qb4 {[%clk 0:02:03]} 19. Nd5 {[%clk 0:01:05]}  Qxb2 {[%clk 0:01:58]} 20. Rd2 {[%clk 0:01:04]}  Qa3 {[%clk 0:01:47]} 21. Bg5 {[%clk 0:00:28]}  f6 {[%clk 0:01:25]} 22. Be3 {[%clk 0:00:27]}  Nd6 {[%clk 0:01:08]} 23. Rd3 {[%clk 0:00:23]}  Qxa2 {[%clk 0:01:04]} 24. Qxd6 {[%clk 0:00:19]}  Qxe2 {[%clk 0:01:04]} 25. Rd2 {[%clk 0:00:18]}  Qxc4 {[%clk 0:01:04]} 26. Nxf6 {[%clk 0:00:16]}  a3 {[%clk 0:00:46]} 27. Bd4 {[%clk 0:00:15]}  Rad8 {[%clk 0:00:38]} 28. Qxa3 {[%clk 0:00:10]}  Rxd4 {[%clk 0:00:36]} 29. Rdf2 {[%clk 0:00:10]}  Rdd8 {[%clk 0:00:32]} 30. Ng4 {[%clk 0:00:08]}  Qd4 {[%clk 0:00:28]} 31. Kh1 {[%clk 0:00:06]}  Rxf2 {[%clk 0:00:26]} 32. Nxf2 {[%clk 0:00:06]}  Qxf2 {[%clk 0:00:20]} 33. Qc1 {[%clk 0:00:05]}  Qd2 {[%clk 0:00:17]} 34. Qc7 {[%clk 0:00:04]}  Qd7 {[%clk 0:00:13]} 35. Qc5 {[%clk 0:00:04]}  b5 {[%clk 0:00:11]} 36. Qb4 {[%clk 0:00:04]}  Qd6 {[%clk 0:00:08]} 37. Qxb5 {[%clk 0:00:04]}  Qd3 {[%clk 0:00:09]} 38. Qb4 {[%clk 0:00:04]}  Qxf1# {[%clk 0:00:09]} 0-1


[Site "https://www.chess.com"]

[Event "Titled Tuesday Blitz April 4 Early 2023"]
[White "Gallegos Diaz, Carlos Alberto"]
[Black "Tokman, Ariel"]
[WhiteFideId "3900886"]
[BlackFideId "117420"]
[WhiteElo "2362"]
[BlackElo "2263"]
[Result "0-1"]
[Round "04"]
[TimeControl "180+2"]
[Date "2023.04.04"]
[WhiteClock "0:00:02"]
[BlackClock "0:00:26"]

1. e4 {[%clk 0:03:00]}  e6 {[%clk 0:03:00]} 2. d3 {[%clk 0:03:00]}  d5 {[%clk 0:03:01]} 3. Nd2 {[%clk 0:03:00]}  Nc6 {[%clk 0:02:59]} 4. Ngf3 {[%clk 0:03:00]}  g6 {[%clk 0:02:59]} 5. Be2 {[%clk 0:03:01]}  Bg7 {[%clk 0:02:59]} 6. O-O {[%clk 0:03:01]}  Nge7 {[%clk 0:03:00]} 7. Re1 {[%clk 0:03:02]}  a5 {[%clk 0:03:00]} 8. c3 {[%clk 0:03:02]}  O-O {[%clk 0:03:00]} 9. Bf1 {[%clk 0:03:02]}  a4 {[%clk 0:03:01]} 10. a3 {[%clk 0:03:02]}  b6 {[%clk 0:03:00]} 11. exd5 {[%clk 0:03:02]}  Nxd5 {[%clk 0:02:58]} 12. h3 {[%clk 0:03:02]}  Bb7 {[%clk 0:02:58]} 13. d4 {[%clk 0:03:01]}  Nce7 {[%clk 0:02:54]} 14. Ne5 {[%clk 0:02:59]}  c5 {[%clk 0:02:52]} 15. dxc5 {[%clk 0:02:57]}  bxc5 {[%clk 0:02:52]} 16. Ndc4 {[%clk 0:02:54]}  Nc6 {[%clk 0:02:44]} 17. Qg4 {[%clk 0:02:29]}  Nf6 {[%clk 0:02:10]} 18. Qg5 {[%clk 0:02:05]}  Nxe5 {[%clk 0:02:07]} 19. Nxe5 {[%clk 0:02:03]}  Ne4 {[%clk 0:02:04]} 20. Qxd8 {[%clk 0:01:43]}  Rfxd8 {[%clk 0:02:05]} 21. Nc4 {[%clk 0:01:29]}  Nd6 {[%clk 0:01:04]} 22. Bg5 {[%clk 0:00:59]}  f6 {[%clk 0:01:04]} 23. Nxd6 {[%clk 0:00:40]}  Rxd6 {[%clk 0:01:01]} 24. Bf4 {[%clk 0:00:32]}  Rb6 {[%clk 0:00:55]} 25. Bc7 {[%clk 0:00:19]}  Rxb2 {[%clk 0:00:52]} 26. Rxe6 {[%clk 0:00:18]}  Bd5 {[%clk 0:00:50]} 27. Rd6 {[%clk 0:00:18]}  Bb3 {[%clk 0:00:46]} 28. c4 {[%clk 0:00:16]}  Re8 {[%clk 0:00:40]} 29. Rad1 {[%clk 0:00:13]}  Bxd1 {[%clk 0:00:39]} 30. Rxd1 {[%clk 0:00:13]}  f5 {[%clk 0:00:40]} 31. g4 {[%clk 0:00:11]}  Bd4 {[%clk 0:00:39]} 32. Bg3 {[%clk 0:00:08]}  f4 {[%clk 0:00:39]} 33. Bh4 {[%clk 0:00:09]}  g5 {[%clk 0:00:37]} 34. Bxg5 {[%clk 0:00:08]}  Bxf2+ {[%clk 0:00:35]} 35. Kh1 {[%clk 0:00:08]}  Bg3 {[%clk 0:00:33]} 36. Bg2 {[%clk 0:00:09]}  Re1+ {[%clk 0:00:28]} 37. Rxe1 {[%clk 0:00:07]}  Bxe1 {[%clk 0:00:29]} 38. Bd5+ {[%clk 0:00:07]}  Kg7 {[%clk 0:00:29]} 39. Bxf4 {[%clk 0:00:07]}  Bc3 {[%clk 0:00:29]} 40. Bd6 {[%clk 0:00:06]}  Bd4 {[%clk 0:00:28]} 41. h4 {[%clk 0:00:07]}  Rb1+ {[%clk 0:00:28]} 42. Kg2 {[%clk 0:00:07]}  Rb3 {[%clk 0:00:29]} 43. g5 {[%clk 0:00:06]}  Rxa3 {[%clk 0:00:27]} 44. h5 {[%clk 0:00:06]}  h6 {[%clk 0:00:28]} 45. g6 {[%clk 0:00:04]}  Ra2+ {[%clk 0:00:28]} 46. Kf3 {[%clk 0:00:02]}  Ra3+ {[%clk 0:00:27]} 47. Ke4 {[%clk 0:00:02]}  Rh3 {[%clk 0:00:25]} 48. Be5+ {[%clk 0:00:02]}  Bxe5 {[%clk 0:00:26]} 49. Kxe5 {[%clk 0:00:03]}  Rxh5+ {[%clk 0:00:26]} 50. Kd6 {[%clk 0:00:03]}  a3 {[%clk 0:00:26]} 51. Bf3 {[%clk 0:00:01]}  a2 {[%clk 0:00:26]} 52. Be4 {[%clk 0:00:02]}  a1=Q {[%clk 0:00:26]} 0-1


[Site "https://www.chess.com"]